[Event "*** Titled Tuesday Blitz"]
[Site "Chess.com"]
[Date "2021.02.16"]
[Round "8"]
[White "MusicCityMaster"]
[Black "Goryachkina"]
[Result "0-1"]
[WhiteElo "2381"]
[BlackElo "2640"]
[TimeControl "180+1"]
[EndTime "11:31:14 PST"]
[Termination "Goryachkina won by resignation"]

1. e4 {[%clk 0:03:00.9]} 1... c5 {[%clk 0:02:59.7]} 2. Nf3 {[%clk 0:03:00.3]}
2... Nc6 {[%clk 0:02:59.9]} 3. d3 {[%clk 0:02:59.9]} 3... g6 {[%clk 0:02:54.5]}
4. g3 {[%clk 0:03:00.3]} 4... Bg7 {[%clk 0:02:54.4]} 5. Bg2 {[%clk 0:03:01.2]}
5... e5 {[%clk 0:02:53.4]} 6. O-O {[%clk 0:03:01.5]} 6... Nge7 {[%clk
0:02:53.4]} 7. Nc3 {[%clk 0:02:50.5]} 7... O-O {[%clk 0:02:52.9]} 8. Re1 {[%clk
0:02:51]} 8... d6 {[%clk 0:02:52.6]} 9. Nd2 {[%clk 0:02:50.5]} 9... f5 {[%clk
0:02:44.8]} 10. exf5 {[%clk 0:02:32.3]} 10... gxf5 {[%clk 0:02:43.4]} 11. Nd5
{[%clk 0:02:21.7]} 11... Nxd5 {[%clk 0:02:38]} 12. Bxd5+ {[%clk 0:02:19.8]}
12... Kh8 {[%clk 0:02:38.3]} 13. Qh5 {[%clk 0:02:18.4]} 13... Bd7 {[%clk
0:02:30.6]} 14. Nf3 {[%clk 0:02:09.9]} 14... Qe8 {[%clk 0:02:21.9]} 15. Qh4
{[%clk 0:02:09.7]} 15... Qg6 {[%clk 0:02:17.6]} 16. Bd2 {[%clk 0:01:53.7]} 16...
Nd4 {[%clk 0:02:10.8]} 17. Nxd4 {[%clk 0:01:45.3]} 17... cxd4 {[%clk 0:02:10.7]}
18. Bxb7 {[%clk 0:01:40.8]} 18... Rab8 {[%clk 0:02:10.4]} 19. Bd5 {[%clk
0:01:41]} 19... Rxb2 {[%clk 0:02:04.4]} 20. Bb3 {[%clk 0:01:40.6]} 20... Bc6
{[%clk 0:01:57.2]} 21. Bc1 {[%clk 0:01:40.4]} 21... Rxb3 {[%clk 0:01:56.3]} 22.
axb3 {[%clk 0:01:40.4]} 22... f4 {[%clk 0:01:50.1]} 23. Rxa7 {[%clk 0:01:35.9]}
23... Bf6 {[%clk 0:01:18.7]} 24. Qh3 {[%clk 0:01:31.4]} 24... Bf3 {[%clk
0:01:12.2]} 25. Qd7 {[%clk 0:01:06.7]} 25... Bh4 {[%clk 0:00:47.7]} 26. Bxf4
{[%clk 0:00:50.4]} 26... Bg4 {[%clk 0:00:23.7]} 27. Bxe5+ {[%clk 0:00:31.5]}
27... dxe5 {[%clk 0:00:23.6]} 28. Qc7 {[%clk 0:00:31.7]} 28... Bf6 {[%clk
0:00:23.8]} 29. Qd6 {[%clk 0:00:30]} 29... Bg7 {[%clk 0:00:18.8]} 30. Qxg6
{[%clk 0:00:22.9]} 30... hxg6 {[%clk 0:00:19.7]} 31. Rea1 {[%clk 0:00:21.8]}
31... Kh7 {[%clk 0:00:18]} 32. Re7 {[%clk 0:00:21.1]} 32... Rg8 {[%clk
0:00:16.2]} 33. Raa7 {[%clk 0:00:20.9]} 33... g5 {[%clk 0:00:16.5]} 34. Rxe5
{[%clk 0:00:20.2]} 34... Kg6 {[%clk 0:00:16.1]} 35. Ree7 {[%clk 0:00:17.9]}
35... Bf6 {[%clk 0:00:16.1]} 36. Ra6 {[%clk 0:00:18.1]} 36... Rc8 {[%clk
0:00:15.7]} 37. Rb7 {[%clk 0:00:16.4]} 37... Bf3 {[%clk 0:00:07.3]} 38. Rbb6
{[%clk 0:00:15.4]} 38... Rf8 {[%clk 0:00:07.3]} 39. Kf1 {[%clk 0:00:14]} 39...
g4 {[%clk 0:00:06.9]} 40. Ke1 {[%clk 0:00:14.2]} 40... Kg5 {[%clk 0:00:07.3]}
41. Kd2 {[%clk 0:00:14.5]} 41... Be7 {[%clk 0:00:05.5]} 42. Rb5+ {[%clk
0:00:14.2]} 42... Rf5 {[%clk 0:00:04]} 43. Rxf5+ {[%clk 0:00:14.7]} 43... Kxf5
{[%clk 0:00:04.9]} 44. Rb6 {[%clk 0:00:13.7]} 44... Ke5 {[%clk 0:00:04.3]} 45.
b4 {[%clk 0:00:13.6]} 45... Kd5 {[%clk 0:00:04.6]} 46. Rb7 {[%clk 0:00:13.3]}
46... Bd6 {[%clk 0:00:04.1]} 47. b5 {[%clk 0:00:13.1]} 47... Kc5 {[%clk
0:00:04.4]} 48. Rd7 {[%clk 0:00:11.8]} 48... Bf8 {[%clk 0:00:03.4]} 49. Rf7
{[%clk 0:00:10.6]} 49... Bh6+ {[%clk 0:00:03.3]} 50. Ke1 {[%clk 0:00:10.4]}
50... Kxb5 {[%clk 0:00:04]} 51. Rc7 {[%clk 0:00:10.2]} 51... Bf8 {[%clk
0:00:03.2]} 52. Rc4 {[%clk 0:00:10]} 52... Bb4+ {[%clk 0:00:02.8]} 53. Kf1
{[%clk 0:00:10.2]} 53... Bc3 {[%clk 0:00:03.3]} 54. Kg1 {[%clk 0:00:09.3]} 54...
Kb6 {[%clk 0:00:03.7]} 55. h4 {[%clk 0:00:09.3]} 55... gxh3 {[%clk 0:00:04.3]}
56. Kh2 {[%clk 0:00:09.8]} 56... Bg4 {[%clk 0:00:04.3]} 57. f3 {[%clk
0:00:09.4]} 57... Bxf3 {[%clk 0:00:04]} 58. Kxh3 {[%clk 0:00:09.5]} 58... Bd5
{[%clk 0:00:04.5]} 59. Ra4 {[%clk 0:00:08.8]} 59... Bc6 {[%clk 0:00:04.4]} 60.
Ra3 {[%clk 0:00:07.1]} 60... Bf3 {[%clk 0:00:04.2]} 61. Rb3+ {[%clk 0:00:07.3]}
61... Kc6 {[%clk 0:00:04.3]} 62. g4 {[%clk 0:00:08.2]} 62... Kd6 {[%clk
0:00:04.9]} 63. Kg3 {[%clk 0:00:09.1]} 63... Bd1 {[%clk 0:00:05.3]} 64. Kf4
{[%clk 0:00:09.3]} 64... Bxc2 {[%clk 0:00:05.6]} 65. Rb6+ {[%clk 0:00:09.3]}
65... Kc5 {[%clk 0:00:05.3]} 66. Ke4 {[%clk 0:00:09.5]} 66... Kxb6 {[%clk
0:00:05.2]} 67. g5 {[%clk 0:00:10]} 67... Bb3 {[%clk 0:00:04]} 68. g6 {[%clk
0:00:10.9]} 68... Kc6 {[%clk 0:00:04.5]} 69. g7 {[%clk 0:00:11.2]} 69... Bg8
{[%clk 0:00:04.4]} 70. Kf5 {[%clk 0:00:11.5]} 70... Kd7 {[%clk 0:00:04.9]} 71.
Kf6 {[%clk 0:00:12.4]} 71... Bb2 {[%clk 0:00:05.1]} 72. Ke5 {[%clk 0:00:12.3]}
72... Ke7 {[%clk 0:00:05.4]} 73. Kf5 {[%clk 0:00:12.6]} 73... Bc3 {[%clk
0:00:05.7]} 74. Kg6 {[%clk 0:00:12.4]} 74... Ke6 {[%clk 0:00:06.2]} 75. Kh6
{[%clk 0:00:12.7]} 75... Kf6 {[%clk 0:00:06.8]} 76. Kh5 {[%clk 0:00:13.2]} 76...
Kxg7 {[%clk 0:00:07.6]} 77. Kg5 {[%clk 0:00:13.7]} 77... Be6 {[%clk 0:00:07.7]}
78. Kf4 {[%clk 0:00:13]} 78... Kf6 {[%clk 0:00:08.6]} 79. Ke4 {[%clk 0:00:12.9]}
79... Bb3 {[%clk 0:00:09.5]} 0-1

[Event "*** Titled Tuesday Blitz"]
[Site "Chess.com"]
[Date "2021.02.16"]
[Round "8"]
[White "ckgchess"]
[Black "markowskitomasz"]
[Result "1/2-1/2"]
[WhiteElo "2758"]
[BlackElo "2618"]
[TimeControl "180+1"]
[EndTime "11:31:25 PST"]
[Termination "Game drawn by repetition"]

1. e4 {[%clk 0:03:00.9]} 1... c5 {[%clk 0:02:59.7]} 2. c3 {[%clk 0:03:00.9]}
2... Nf6 {[%clk 0:02:58.8]} 3. e5 {[%clk 0:03:01.1]} 3... Nd5 {[%clk 0:02:58.8]}
4. d4 {[%clk 0:03:01.7]} 4... cxd4 {[%clk 0:02:57.7]} 5. Qxd4 {[%clk 0:03:02.6]}
5... e6 {[%clk 0:02:55]} 6. Nf3 {[%clk 0:03:02.7]} 6... Nc6 {[%clk 0:02:52.1]}
7. Qe4 {[%clk 0:03:02.9]} 7... f5 {[%clk 0:02:50.7]} 8. Qe2 {[%clk 0:03:03]}
8... b5 {[%clk 0:02:44.3]} 9. g3 {[%clk 0:03:03.1]} 9... a5 {[%clk 0:02:43.8]}
10. Bg2 {[%clk 0:03:03.2]} 10... Be7 {[%clk 0:02:40.1]} 11. O-O {[%clk
0:03:02.6]} 11... O-O {[%clk 0:02:39.9]} 12. Rd1 {[%clk 0:02:56.8]} 12... Rb8
{[%clk 0:02:35.8]} 13. a4 {[%clk 0:02:41]} 13... bxa4 {[%clk 0:02:01]} 14. Rxa4
{[%clk 0:02:38.6]} 14... Qb6 {[%clk 0:01:58.5]} 15. Na3 {[%clk 0:02:28.8]} 15...
Qb3 {[%clk 0:01:39.1]} 16. Qc4 {[%clk 0:00:49.6]} 16... Bxa3 {[%clk 0:01:29.8]}
17. Qxb3 {[%clk 0:00:49.6]} 17... Rxb3 {[%clk 0:01:29.1]} 18. Rxa3 {[%clk
0:00:50.5]} 18... Rxa3 {[%clk 0:01:29]} 19. bxa3 {[%clk 0:00:51.4]} 19... Nxc3
{[%clk 0:01:29.2]} 20. Re1 {[%clk 0:00:52.1]} 20... Ba6 {[%clk 0:01:26.4]} 21.
Bd2 {[%clk 0:00:40.8]} 21... Ne4 {[%clk 0:01:19.4]} 22. Be3 {[%clk 0:00:41.2]}
22... Rb8 {[%clk 0:01:16.8]} 23. Nd2 {[%clk 0:00:34.7]} 23... Nxd2 {[%clk
0:00:38]} 24. Bxd2 {[%clk 0:00:35.6]} 24... Rb2 {[%clk 0:00:37.8]} 25. Bf4
{[%clk 0:00:20.6]} 25... Nd4 {[%clk 0:00:32.3]} 26. h4 {[%clk 0:00:12.8]} 26...
Ne2+ {[%clk 0:00:30.5]} 27. Kh2 {[%clk 0:00:13.1]} 27... Nxf4 {[%clk 0:00:29.5]}
28. gxf4 {[%clk 0:00:14]} 28... Rxf2 {[%clk 0:00:29.2]} 29. Kg3 {[%clk
0:00:14.7]} 29... Rb2 {[%clk 0:00:27.6]} 30. Rd1 {[%clk 0:00:14.2]} 30... Bb5
{[%clk 0:00:22.6]} 31. Rd6 {[%clk 0:00:07]} 31... Rb3+ {[%clk 0:00:20.4]} 32.
Kh2 {[%clk 0:00:07.4]} 32... Rxa3 {[%clk 0:00:20.8]} 33. Rb6 {[%clk 0:00:07.7]}
33... Bc6 {[%clk 0:00:12.8]} 34. Bxc6 {[%clk 0:00:07.4]} 34... dxc6 {[%clk
0:00:13.7]} 35. Rxc6 {[%clk 0:00:08.3]} 35... Ra4 {[%clk 0:00:11]} 36. Kg3
{[%clk 0:00:06.8]} 36... Kf7 {[%clk 0:00:11]} 37. Rc7+ {[%clk 0:00:06.9]} 37...
Kg6 {[%clk 0:00:11.1]} 38. Re7 {[%clk 0:00:07.2]} 38... Ra3+ {[%clk 0:00:11]}
39. Kf2 {[%clk 0:00:07]} 39... Ra2+ {[%clk 0:00:11.5]} 40. Ke3 {[%clk
0:00:07.1]} 40... Ra3+ {[%clk 0:00:10.7]} 41. Ke2 {[%clk 0:00:07.7]} 41... Ra4
{[%clk 0:00:10.9]} 42. Ke3 {[%clk 0:00:05.8]} 42... Kh5 {[%clk 0:00:07.6]} 43.
Rxg7 {[%clk 0:00:05.2]} 43... Ra3+ {[%clk 0:00:06.6]} 44. Kd4 {[%clk 0:00:05.2]}
44... Ra4+ {[%clk 0:00:07.1]} 45. Kc5 {[%clk 0:00:05.5]} 45... Kxh4 {[%clk
0:00:04.7]} 46. Kd6 {[%clk 0:00:05.4]} 46... Rxf4 {[%clk 0:00:03.9]} 47. Kxe6
{[%clk 0:00:06]} 47... h5 {[%clk 0:00:03.7]} 48. Kf7 {[%clk 0:00:03.9]} 48... a4
{[%clk 0:00:04]} 49. e6 {[%clk 0:00:04.5]} 49... Re4 {[%clk 0:00:02.7]} 50. e7
{[%clk 0:00:05.4]} 50... a3 {[%clk 0:00:03]} 51. Rg2 {[%clk 0:00:05.4]} 51... f4
{[%clk 0:00:02.5]} 52. Ra2 {[%clk 0:00:06.3]} 52... f3 {[%clk 0:00:02.3]} 53.
Rxa3 {[%clk 0:00:05.6]} 53... Kg3 {[%clk 0:00:02.1]} 54. Ra5 {[%clk 0:00:03.2]}
54... f2 {[%clk 0:00:02]} 55. Rg5+ {[%clk 0:00:02.9]} 55... Kf3 {[%clk
0:00:01.9]} 56. Rf5+ {[%clk 0:00:03]} 56... Kg3 {[%clk 0:00:01.9]} 57. Rg5+
{[%clk 0:00:03.1]} 57... Kf4 {[%clk 0:00:02.3]} 58. Rg6 {[%clk 0:00:02.3]} 58...
Rxe7+ {[%clk 0:00:01.7]} 59. Kxe7 {[%clk 0:00:02.3]} 59... Ke3 {[%clk
0:00:01.6]} 60. Re6+ {[%clk 0:00:02.5]} 60... Kf3 {[%clk 0:00:02.1]} 61. Rf6+
{[%clk 0:00:02.7]} 61... Kg3 {[%clk 0:00:02.4]} 62. Rg6+ {[%clk 0:00:03.2]}
62... Kh2 {[%clk 0:00:02.5]} 63. Rf6 {[%clk 0:00:04.1]} 63... Kg1 {[%clk
0:00:02.7]} 64. Rg6+ {[%clk 0:00:04.5]} 64... Kf1 {[%clk 0:00:03.1]} 65. Rh6
{[%clk 0:00:04.9]} 65... Kg2 {[%clk 0:00:02.8]} 66. Rg6+ {[%clk 0:00:05.2]}
66... Kf3 {[%clk 0:00:02.9]} 67. Rf6+ {[%clk 0:00:05]} 67... Ke3 {[%clk
0:00:03.3]} 68. Re6+ {[%clk 0:00:05.5]} 68... Kf4 {[%clk 0:00:03.3]} 69. Rf6+
{[%clk 0:00:05.8]} 69... Kg3 {[%clk 0:00:03.9]} 70. Rg6+ {[%clk 0:00:06.1]}
70... Kh2 {[%clk 0:00:03.8]} 71. Rf6 {[%clk 0:00:06.3]} 71... Kg1 {[%clk
0:00:03.9]} 72. Rg6+ {[%clk 0:00:06.7]} 72... Kh1 {[%clk 0:00:04]} 73. Rf6
{[%clk 0:00:06.1]} 73... Kg2 {[%clk 0:00:03.8]} 74. Rg6+ {[%clk 0:00:06.4]}
74... Kh1 {[%clk 0:00:03.3]} 75. Rf6 {[%clk 0:00:06.7]} 75... Kg2 {[%clk
0:00:03.3]} 76. Rg6+ {[%clk 0:00:07.1]} 1/2-1/2

[Event "*** Titled Tuesday Blitz"]
[Site "Chess.com"]
[Date "2021.02.16"]
[Round "8"]
[White "arminmusovic"]
[Black "IMRosen"]
[Result "1/2-1/2"]
[WhiteElo "2500"]
[BlackElo "2629"]
[TimeControl "180+1"]
[EndTime "11:31:26 PST"]
[Termination "Game drawn by stalemate"]

1. a3 {[%clk 0:03:00.9]} 1... d5 {[%clk 0:02:59.4]} 2. Nc3 {[%clk 0:02:55.2]}
2... Nf6 {[%clk 0:02:56.2]} 3. d3 {[%clk 0:02:55.2]} 3... e5 {[%clk 0:02:52.1]}
4. Bg5 {[%clk 0:02:54.9]} 4... c6 {[%clk 0:02:46.3]} 5. e4 {[%clk 0:02:53.6]}
5... Bc5 {[%clk 0:02:40]} 6. h3 {[%clk 0:02:50.9]} 6... h6 {[%clk 0:02:37.1]} 7.
Bh4 {[%clk 0:02:51]} 7... Be6 {[%clk 0:02:29.8]} 8. Nf3 {[%clk 0:02:46.9]} 8...
Nbd7 {[%clk 0:02:30]} 9. Be2 {[%clk 0:02:26.2]} 9... g5 {[%clk 0:02:29.1]} 10.
Bg3 {[%clk 0:02:25]} 10... d4 {[%clk 0:02:28.9]} 11. Nb1 {[%clk 0:02:14.9]}
11... Bd6 {[%clk 0:02:29.2]} 12. Nxd4 {[%clk 0:02:03.2]} 12... exd4 {[%clk
0:01:50.1]} 13. Bxd6 {[%clk 0:02:02]} 13... Ne5 {[%clk 0:01:50.8]} 14. Bxe5
{[%clk 0:01:32.7]} 14... Qa5+ {[%clk 0:01:50.8]} 15. Nd2 {[%clk 0:01:33.3]}
15... Qxe5 {[%clk 0:01:51.3]} 16. Nf3 {[%clk 0:01:33.9]} 16... Qc5 {[%clk
0:01:47.4]} 17. Qd2 {[%clk 0:01:19.6]} 17... Rd8 {[%clk 0:01:45.2]} 18. b4
{[%clk 0:01:17.4]} 18... Qb6 {[%clk 0:01:45.2]} 19. O-O {[%clk 0:01:10.7]} 19...
g4 {[%clk 0:01:35.3]} 20. hxg4 {[%clk 0:01:08.5]} 20... Nxg4 {[%clk 0:01:36.2]}
21. Qf4 {[%clk 0:01:06.5]} 21... Rg8 {[%clk 0:01:36.1]} 22. Nh2 {[%clk
0:00:53.2]} 22... h5 {[%clk 0:01:21.9]} 23. Nxg4 {[%clk 0:00:35.7]} 23... Bxg4
{[%clk 0:01:21.9]} 24. f3 {[%clk 0:00:33.3]} 24... Be6 {[%clk 0:01:20.2]} 25.
Kf2 {[%clk 0:00:32.4]} 25... Qb5 {[%clk 0:00:55.9]} 26. a4 {[%clk 0:00:29.8]}
26... Qxb4 {[%clk 0:00:52.3]} 27. Rab1 {[%clk 0:00:30.3]} 27... Qe7 {[%clk
0:00:52.8]} 28. Rh1 {[%clk 0:00:27.6]} 28... Rh8 {[%clk 0:00:37.2]} 29. Qe5
{[%clk 0:00:28]} 29... Rh6 {[%clk 0:00:35.4]} 30. Rxh5 {[%clk 0:00:25.1]} 30...
Rxh5 {[%clk 0:00:34]} 31. Qxh5 {[%clk 0:00:25.3]} 31... b6 {[%clk 0:00:34.7]}
32. a5 {[%clk 0:00:25]} 32... b5 {[%clk 0:00:33.8]} 33. f4 {[%clk 0:00:24.4]}
33... Kd7 {[%clk 0:00:24.5]} 34. f5 {[%clk 0:00:23.3]} 34... Ba2 {[%clk
0:00:25.1]} 35. Rh1 {[%clk 0:00:20.2]} 35... Qc5 {[%clk 0:00:22.8]} 36. Qf3
{[%clk 0:00:18.7]} 36... Qxc2 {[%clk 0:00:21.6]} 37. e5 {[%clk 0:00:19.2]} 37...
Bd5 {[%clk 0:00:21.6]} 38. Qf4 {[%clk 0:00:17.8]} 38... Qc5 {[%clk 0:00:17.6]}
39. Rh7 {[%clk 0:00:17.2]} 39... Kc8 {[%clk 0:00:17.4]} 40. e6 {[%clk
0:00:17.2]} 40... Qd6 {[%clk 0:00:16.3]} 41. Qxd6 {[%clk 0:00:16.2]} 41... Rxd6
{[%clk 0:00:16.8]} 42. exf7 {[%clk 0:00:15.5]} 42... Bxf7 {[%clk 0:00:15.3]} 43.
Rxf7 {[%clk 0:00:15.1]} 43... c5 {[%clk 0:00:15.9]} 44. Rxa7 {[%clk 0:00:14.5]}
44... b4 {[%clk 0:00:15.7]} 45. Bd1 {[%clk 0:00:14]} 45... c4 {[%clk 0:00:12.8]}
46. dxc4 {[%clk 0:00:13.9]} 46... d3 {[%clk 0:00:13.6]} 47. Ke3 {[%clk
0:00:13.6]} 47... d2 {[%clk 0:00:12.4]} 48. Rh7 {[%clk 0:00:11]} 48... b3 {[%clk
0:00:12.6]} 49. Rh1 {[%clk 0:00:11.6]} 49... b2 {[%clk 0:00:12.3]} 50. Bc2
{[%clk 0:00:12.1]} 50... Rh6 {[%clk 0:00:10.9]} 51. Rd1 {[%clk 0:00:11.7]} 51...
Ra6 {[%clk 0:00:06.8]} 52. Kxd2 {[%clk 0:00:11.1]} 52... Rxa5 {[%clk 0:00:07.5]}
53. Rb1 {[%clk 0:00:10.3]} 53... Ra2 {[%clk 0:00:06.7]} 54. Kc3 {[%clk
0:00:10.3]} 54... Ra3+ {[%clk 0:00:07.2]} 55. Bb3 {[%clk 0:00:10.9]} 55... Ra5
{[%clk 0:00:06.8]} 56. Rxb2 {[%clk 0:00:11.2]} 56... Rxf5 {[%clk 0:00:06.8]} 57.
Re2 {[%clk 0:00:11.6]} 57... Rg5 {[%clk 0:00:07]} 58. Kb4 {[%clk 0:00:10.4]}
58... Kc7 {[%clk 0:00:07.3]} 59. Bc2 {[%clk 0:00:10.6]} 59... Rg4 {[%clk
0:00:06.6]} 60. Be4 {[%clk 0:00:10.6]} 60... Kb6 {[%clk 0:00:06.8]} 61. Bf3
{[%clk 0:00:11]} 61... Rf4 {[%clk 0:00:06.7]} 62. Re6+ {[%clk 0:00:10.8]} 62...
Kc7 {[%clk 0:00:07.3]} 63. Re4 {[%clk 0:00:10.9]} 63... Rf5 {[%clk 0:00:06.6]}
64. c5 {[%clk 0:00:11.4]} 64... Kb8 {[%clk 0:00:05.9]} 65. Kb5 {[%clk
0:00:11.6]} 65... Rf6 {[%clk 0:00:06.4]} 66. Re7 {[%clk 0:00:11.1]} 66... Rh6
{[%clk 0:00:03.8]} 67. Rb7+ {[%clk 0:00:10.8]} 67... Kc8 {[%clk 0:00:04]} 68.
Rb6 {[%clk 0:00:11.7]} 68... Rh1 {[%clk 0:00:03.3]} 69. Rf6 {[%clk 0:00:10.6]}
69... Rh8 {[%clk 0:00:02.1]} 70. Kb6 {[%clk 0:00:09.9]} 70... Kd8 {[%clk
0:00:02.4]} 71. c6 {[%clk 0:00:09.9]} 71... Ke7 {[%clk 0:00:03.3]} 72. Rf4
{[%clk 0:00:09.2]} 72... Ke6 {[%clk 0:00:03.3]} 73. Rd4 {[%clk 0:00:08.5]} 73...
Ke5 {[%clk 0:00:03.6]} 74. Rd5+ {[%clk 0:00:08.6]} 74... Ke6 {[%clk 0:00:03.5]}
75. c7 {[%clk 0:00:09.1]} 75... Rh6 {[%clk 0:00:02.2]} 76. Kb7 {[%clk
0:00:09.2]} 76... Kf7 {[%clk 0:00:01.8]} 77. c8=Q {[%clk 0:00:08.6]} 77... Rg6
{[%clk 0:00:01.1]} 78. Qf5+ {[%clk 0:00:07.7]} 78... Kg7 {[%clk 0:00:01.2]} 79.
Qxg6+ {[%clk 0:00:07.9]} 79... Kh8 {[%clk 0:00:01.1]} 80. Kc6 {[%clk 0:00:08.6]}
1/2-1/2

[Event "*** Titled Tuesday Blitz"]
[Site "Chess.com"]
[Date "2021.02.16"]
[Round "8"]
[White "Jospem"]
[Black "TimofeevAr"]
[Result "1/2-1/2"]
[WhiteElo "3014"]
[BlackElo "2890"]
[TimeControl "180+1"]
[EndTime "11:31:37 PST"]
[Termination "Game drawn - insufficient material"]

1. e4 {[%clk 0:03:00.9]} 1... d5 {[%clk 0:02:59.5]} 2. exd5 {[%clk 0:03:01.1]}
2... Nf6 {[%clk 0:02:59.7]} 3. Nf3 {[%clk 0:03:02]} 3... Nxd5 {[%clk 0:02:59.6]}
4. d4 {[%clk 0:03:02.5]} 4... g6 {[%clk 0:02:59.7]} 5. c4 {[%clk 0:03:02.8]}
5... Nf6 {[%clk 0:02:59.9]} 6. h3 {[%clk 0:03:03.1]} 6... Bg7 {[%clk 0:03:00.2]}
7. Nc3 {[%clk 0:03:03.6]} 7... O-O {[%clk 0:03:00.4]} 8. Be3 {[%clk 0:03:04.1]}
8... b6 {[%clk 0:03:00.5]} 9. Be2 {[%clk 0:03:03]} 9... Bb7 {[%clk 0:03:00.6]}
10. O-O {[%clk 0:03:03.7]} 10... Nbd7 {[%clk 0:03:00.9]} 11. Qb3 {[%clk
0:02:50.3]} 11... e6 {[%clk 0:02:59.4]} 12. Rad1 {[%clk 0:02:46.4]} 12... Qe7
{[%clk 0:02:59.2]} 13. Rfe1 {[%clk 0:02:45.9]} 13... Rad8 {[%clk 0:02:50]} 14.
Bf4 {[%clk 0:02:33.9]} 14... c5 {[%clk 0:02:31]} 15. Nb5 {[%clk 0:02:31]} 15...
Ne4 {[%clk 0:02:24.9]} 16. Bd3 {[%clk 0:01:47.9]} 16... Ndf6 {[%clk 0:02:24.1]}
17. Bxe4 {[%clk 0:01:47.5]} 17... Nxe4 {[%clk 0:02:06.6]} 18. d5 {[%clk
0:01:47.3]} 18... a6 {[%clk 0:01:51.2]} 19. Rxe4 {[%clk 0:01:34.2]} 19... axb5
{[%clk 0:01:51]} 20. Qxb5 {[%clk 0:01:26.6]} 20... Qd7 {[%clk 0:01:50.7]} 21.
Qxb6 {[%clk 0:01:08.6]} 21... exd5 {[%clk 0:01:50.4]} 22. cxd5 {[%clk
0:01:09.5]} 22... Bxd5 {[%clk 0:01:48]} 23. Ree1 {[%clk 0:01:02.2]} 23... Qa4
{[%clk 0:01:38.1]} 24. Bg5 {[%clk 0:00:59]} 24... Rb8 {[%clk 0:01:37.3]} 25.
Qxc5 {[%clk 0:00:52.5]} 25... Bxf3 {[%clk 0:01:37.1]} 26. gxf3 {[%clk
0:00:53.4]} 26... Rxb2 {[%clk 0:01:27.5]} 27. a3 {[%clk 0:00:40.9]} 27... Rb5
{[%clk 0:01:22.2]} 28. Qe7 {[%clk 0:00:29.1]} 28... h6 {[%clk 0:00:58.1]} 29.
Be3 {[%clk 0:00:18.2]} 29... Rf5 {[%clk 0:00:55.6]} 30. Kg2 {[%clk 0:00:15.5]}
30... Re8 {[%clk 0:00:53.3]} 31. Rd8 {[%clk 0:00:13.3]} 31... Rxd8 {[%clk
0:00:53.5]} 32. Qxd8+ {[%clk 0:00:14.2]} 32... Kh7 {[%clk 0:00:54.1]} 33. Qe7
{[%clk 0:00:13.2]} 33... Qa8 {[%clk 0:00:50.6]} 34. Qe4 {[%clk 0:00:13.6]} 34...
Qxa3 {[%clk 0:00:50.4]} 35. Rb1 {[%clk 0:00:14.1]} 35... Qd6 {[%clk 0:00:24.1]}
36. Rb7 {[%clk 0:00:12.7]} 36... h5 {[%clk 0:00:23]} 37. Qe7 {[%clk 0:00:08.3]}
37... Qxe7 {[%clk 0:00:21.1]} 38. Rxe7 {[%clk 0:00:08.1]} 38... Kg8 {[%clk
0:00:20.9]} 39. Rd7 {[%clk 0:00:08.3]} 39... Kh7 {[%clk 0:00:21.1]} 40. Rb7
{[%clk 0:00:06.6]} 40... Kg8 {[%clk 0:00:21.2]} 41. Rc7 {[%clk 0:00:06.3]} 41...
Kh7 {[%clk 0:00:21.4]} 42. Rc4 {[%clk 0:00:06.9]} 42... Kg8 {[%clk 0:00:21.2]}
43. f4 {[%clk 0:00:07]} 43... Kh7 {[%clk 0:00:21]} 44. Kf3 {[%clk 0:00:07.6]}
44... Rb5 {[%clk 0:00:20.4]} 45. Ke4 {[%clk 0:00:07.7]} 45... Bf6 {[%clk
0:00:19.4]} 46. Rc6 {[%clk 0:00:06.7]} 46... Kg7 {[%clk 0:00:18.7]} 47. Kf3
{[%clk 0:00:07.3]} 47... Rb3 {[%clk 0:00:18.4]} 48. f5 {[%clk 0:00:06.1]} 48...
g5 {[%clk 0:00:17]} 49. Kg2 {[%clk 0:00:06.5]} 49... Rb5 {[%clk 0:00:16.4]} 50.
Bc5 {[%clk 0:00:06.2]} 50... Be5 {[%clk 0:00:13.9]} 51. Kf3 {[%clk 0:00:05.3]}
51... Rb3+ {[%clk 0:00:12]} 52. Kg2 {[%clk 0:00:04.3]} 52... f6 {[%clk
0:00:09.7]} 53. Be3 {[%clk 0:00:03.5]} 53... g4 {[%clk 0:00:09]} 54. hxg4 {[%clk
0:00:03.5]} 54... hxg4 {[%clk 0:00:09.4]} 55. Rc4 {[%clk 0:00:04.2]} 55... g3
{[%clk 0:00:09.8]} 56. Rg4+ {[%clk 0:00:03.5]} 56... Kf7 {[%clk 0:00:09.5]} 57.
Rh4 {[%clk 0:00:03.7]} 57... gxf2 {[%clk 0:00:08.7]} 58. Bxf2 {[%clk 0:00:04.6]}
58... Rb5 {[%clk 0:00:08.2]} 59. Rh7+ {[%clk 0:00:03.6]} 59... Kg8 {[%clk
0:00:08.3]} 60. Rd7 {[%clk 0:00:04]} 60... Rb3 {[%clk 0:00:04.2]} 61. Bc5 {[%clk
0:00:03.3]} 61... Rc3 {[%clk 0:00:03.9]} 62. Bb4 {[%clk 0:00:03.7]} 62... Rb3
{[%clk 0:00:04.1]} 63. Bd2 {[%clk 0:00:03.3]} 63... Rb2 {[%clk 0:00:03.8]} 64.
Kf3 {[%clk 0:00:03.8]} 64... Rb3+ {[%clk 0:00:03.4]} 65. Ke4 {[%clk 0:00:04.3]}
65... Kf8 {[%clk 0:00:03.5]} 66. Be3 {[%clk 0:00:04.7]} 66... Ke8 {[%clk
0:00:03.6]} 67. Rh7 {[%clk 0:00:05.3]} 67... Rb5 {[%clk 0:00:03]} 68. Bh6 {[%clk
0:00:05.3]} 68... Ra5 {[%clk 0:00:03]} 69. Rh8+ {[%clk 0:00:04.8]} 69... Kd7
{[%clk 0:00:03]} 70. Rh7+ {[%clk 0:00:04.9]} 70... Kc6 {[%clk 0:00:03.5]} 71.
Bf8 {[%clk 0:00:05.4]} 71... Ra4+ {[%clk 0:00:04.4]} 72. Ke3 {[%clk 0:00:05.7]}
72... Rc4 {[%clk 0:00:04.7]} 73. Re7 {[%clk 0:00:05.6]} 73... Kd5 {[%clk
0:00:05.1]} 74. Rd7+ {[%clk 0:00:06]} 74... Kc6 {[%clk 0:00:05.6]} 75. Rd8
{[%clk 0:00:06.5]} 75... Rc3+ {[%clk 0:00:06]} 76. Ke2 {[%clk 0:00:06.3]} 76...
Rc2+ {[%clk 0:00:06]} 77. Kd3 {[%clk 0:00:06.9]} 77... Rc3+ {[%clk 0:00:06.5]}
78. Ke2 {[%clk 0:00:07.5]} 78... Rc4 {[%clk 0:00:06.9]} 79. Rc8+ {[%clk
0:00:06.6]} 79... Kd5 {[%clk 0:00:06.7]} 80. Rxc4 {[%clk 0:00:06.9]} 80... Kxc4
{[%clk 0:00:07.1]} 81. Kf3 {[%clk 0:00:07.8]} 81... Kd5 {[%clk 0:00:07.4]} 82.
Kg4 {[%clk 0:00:08.7]} 82... Ke4 {[%clk 0:00:07.7]} 83. Bh6 {[%clk 0:00:09.1]}
83... Bd4 {[%clk 0:00:08.1]} 84. Bf4 {[%clk 0:00:09.4]} 84... Bc3 {[%clk
0:00:08.5]} 85. Bc1 {[%clk 0:00:09.5]} 85... Bd4 {[%clk 0:00:08.8]} 86. Bh6
{[%clk 0:00:09.8]} 86... Bc3 {[%clk 0:00:09]} 87. Bg7 {[%clk 0:00:10.4]} 87...
Bd4 {[%clk 0:00:09.4]} 88. Kh5 {[%clk 0:00:11.1]} 88... Kxf5 {[%clk 0:00:09]}
89. Bxf6 {[%clk 0:00:11.4]} 1/2-1/2